fUSD/lending_fUSD_20250823
["ID","MTS","AMOUNT","RATE_DAILY","PERIOD"]
[380942014,1755909118248,-400.0,0.00015068,2]
[380942015,1755909118258,-400.0,0.00015068,2]
[380942016,1755909118267,-400.0,0.00015068,2]
[380942017,1755909118280,-410.44,0.00015068,2]
[380942018,1755909118290,-477.98,0.00015068,2]
[380942019,1755909118300,-400.0,0.00015068,2]
[380942020,1755909118309,-692.3,0.00015068,2]
[380942021,1755909118318,-600.48,0.00015068,2]
[380942022,1755909118327,-400.0,0.00015068,2]
[380942023,1755909118337,-402.6,0.00015068,2]
[380942024,1755909118346,-400.0,0.00015068,2]
[380942025,1755909118355,-400.0,0.00015068,2]
[380942026,1755909118364,-400.0,0.00015068,2]
[380942027,1755909118374,-685.13,0.00015068,2]
[380942028,1755909118383,-400.0,0.00015068,2]
[380942029,1755909118393,-400.0,0.00015068,2]
[380942030,1755909118402,-400.0,0.00015068,2]
[380942031,1755909118412,-400.0,0.00015068,2]
[380942032,1755909118422,-400.0,0.00015068,2]
[380942033,1755909118431,-580.21,0.00015068,2]
[380942034,1755909118441,-400.0,0.00015068,2]
[380942035,1755909118451,-400.0,0.00015068,2]
[380942036,1755909118460,-628.41,0.00015068,2]
[380942037,1755909118470,-699.23,0.00015068,2]
[380942038,1755909118479,-400.0,0.00015068,2]
[380942039,1755909118489,-740.51,0.00015068,2]
[380942040,1755909118498,-440.08,0.00015068,2]
[380942041,1755909118509,-469.22,0.00015068,2]
[380942042,1755909118519,-622.9,0.00015068,2]
[380942043,1755909118528,-1031.94,0.00015068,2]
[380942044,1755909118537,-400.0,0.00015068,2]
[380942045,1755909118546,-419.57,0.00015068,2]
[380942046,1755909118555,-511.83,0.00015068,2]
[380942047,1755909118564,-620.5,0.00015068,2]
[380942048,1755909118573,-400.0,0.00015068,2]
[380942049,1755909118583,-608.92,0.00015068,2]
[380942050,1755909118592,-738.22,0.00015068,2]
[380942051,1755909118602,-699.72,0.00015068,2]
[380942052,1755909118611,-402.65,0.00015068,2]
[380942053,1755909118621,-400.0,0.00015068,2]
[380942054,1755909118630,-400.0,0.00015068,2]
[380942055,1755909118639,-566.41,0.00015068,2]
[380942056,1755909118649,-400.0,0.00015068,2]
[380942057,1755909118659,-692.55,0.00015068,2]
[380942058,1755909118668,-400.0,0.00015068,2]
[380942059,1755909118677,-400.0,0.00015068,2]
[380942060,1755909118689,-681.21,0.00015068,2]
[380942061,1755909118699,-400.0,0.00015068,2]
[380942062,1755909118708,-461.28,0.00015068,2]
[380942063,1755909118718,-489.89,0.00015068,2]
[380942064,1755909118727,-566.05,0.00015068,2]
[380942065,1755909118736,-414.87,0.00015068,2]
[380942066,1755909118746,-400.0,0.00015068,2]
[380942067,1755909118756,-400.0,0.00015068,2]
[380942068,1755909118766,-475.17,0.00015068,2]
[380942069,1755909118775,-177.327304,0.00015068,2]
[380942070,1755909118785,-411.77,0.00015068,2]
[380942071,1755909118797,-400.0,0.00015068,2]
[380942072,1755909118806,-400.0,0.00015068,2]
[380942073,1755909118816,-410.23,0.00015068,2]
[380942074,1755909118825,-400.0,0.00015068,2]
[380942075,1755909118836,-400.0,0.00015068,2]
[380942076,1755909118847,-400.0,0.00015068,2]
[380942077,1755909118856,-400.0,0.00015068,2]
[380942078,1755909118866,-639.2,0.00015068,2]
[380942079,1755909118875,-477.58,0.00015068,2]
[380942080,1755909118884,-400.0,0.00015068,2]
[380942081,1755909118894,-972.5,0.00015068,2]
[380942082,1755909118904,-414.05,0.00015068,2]
[380942083,1755909118913,-467.39,0.00015068,2]
[380942084,1755909118923,-400.0,0.00015068,2]
[380942085,1755909118933,-400.0,0.00015068,2]
[380942086,1755909118943,-667.14,0.00015068,2]
[380942087,1755909118953,-400.0,0.00015068,2]
[380942088,1755909118963,-532.87,0.00015068,2]
[380942089,1755909118972,-442.87,0.00015068,2]
[380942090,1755909118983,-788.52,0.00015068,2]
[380942091,1755909118993,-400.0,0.00015068,2]
[380942092,1755909119002,-413.86,0.00015068,2]
[380942093,1755909119013,-528.62,0.00015068,2]
[380942094,1755909119023,-400.0,0.00015068,2]
[380942095,1755909119032,-858.81,0.00015068,2]
[380942096,1755909119043,-400.0,0.00015068,2]
[380942097,1755909119053,-400.0,0.00015068,2]
[380942098,1755909119063,-962.13,0.00015068,2]
[380942099,1755909119072,-640.39,0.00015068,2]
[380942100,1755909119082,-400.0,0.00015068,2]
[380942101,1755909119092,-400.0,0.00015068,2]
[380942102,1755909119102,-400.0,0.00015068,2]
[380942103,1755909119111,-516.86122495,0.00015068,2]
[380942104,1755909119121,-495.39,0.00015068,2]
[380942105,1755909119131,-431.15,0.00015068,2]
[380942106,1755909119140,-469.42,0.00015068,2]
[380942107,1755909119151,-412.84,0.00015068,2]
[380942108,1755909119161,-400.0,0.00015068,2]
[380942109,1755909119171,-1194.0,0.00015068,2]
[380942110,1755909119181,-303.6,0.00015068,2]
[380942111,1755909119192,-400.0,0.00015068,2]
[380942112,1755909119206,-400.0,0.00015068,2]
[380942113,1755909119217,-719.77,0.00015068,2]
[380942114,1755909119228,-1072.22,0.00015068,2]
[380942115,1755909119239,-571.55,0.00015068,2]
[380942116,1755909119251,-402.59,0.00015068,2]
[380942117,1755909119261,-511.73,0.00015068,2]
[380942118,1755909119271,-400.0,0.00015068,2]
[380942119,1755909119281,-400.0,0.00015068,2]
[380942120,1755909119291,-796.82,0.00015068,2]
[380942121,1755909119300,-839.94,0.00015068,2]
[380942122,1755909119310,-697.65,0.00015068,2]
[380942123,1755909119319,-575.9,0.00015068,2]
[380942124,1755909119329,-486.14,0.00015068,2]
[380942125,1755909119339,-400.0,0.00015068,2]
[380942126,1755909119349,-499.82,0.00015068,2]
[380942127,1755909119359,-400.0,0.00015068,2]
[380942128,1755909119369,-400.0,0.00015068,2]
[380942129,1755909119379,-400.0,0.00015068,2]
[380942130,1755909119390,-400.0,0.00015068,2]
[380942131,1755909119400,-400.0,0.00015068,2]
[380942132,1755909119409,-900.25,0.00015068,2]
[380942133,1755909119420,-350.02643808,0.00015068,2]
[380942134,1755909119429,-814.32,0.00015068,2]
[380942135,1755909119439,-442.56,0.00015068,2]
[380942136,1755909119449,-657.79,0.00015068,2]
[380942137,1755909119459,-529.89,0.00015068,2]
[380942138,1755909119468,-400.0,0.00015068,2]
[380942139,1755909119479,-400.0,0.00015068,2]
[380942140,1755909119488,-400.0,0.00015068,2]
[380942141,1755909119499,-400.0,0.00015068,2]
[380942142,1755909119509,-1017.87,0.00015068,2]
[380942143,1755909119520,-400.0,0.00015068,2]
[380942144,1755909119530,-400.0,0.00015068,2]
[380942145,1755909119540,-638.0,0.00015068,2]
[380942146,1755909119550,-400.0,0.00015068,2]
[380942147,1755909119560,-410.77,0.00015068,2]
[380942148,1755909119569,-802.21,0.00015068,2]
[380942149,1755909119579,-400.0,0.00015068,2]
[380942150,1755909119588,-400.0,0.00015068,2]
[380942151,1755909119598,-400.0,0.00015068,2]
[380942152,1755909119608,-574.55,0.00015068,2]
[380942153,1755909119618,-400.0,0.00015068,2]
[380942154,1755909119629,-400.0,0.00015068,2]
[380942155,1755909119639,-601.94,0.00015068,2]
[380942156,1755909119649,-548.25,0.00015068,2]
[380942157,1755909119659,-463.43,0.00015068,2]
[380942158,1755909119669,-733.18,0.00015068,2]
[380942159,1755909119679,-614.24,0.00015068,2]
[380942160,1755909119689,-549.47877692,0.00015068,2]
[380942161,1755909119701,-613.84,0.00015068,2]
[380942162,1755909119711,-689.7,0.00015068,2]
[380942163,1755909119721,-466.72,0.00015068,2]
[380942164,1755909119731,-400.0,0.00015068,2]
[380942165,1755909119740,-400.0,0.00015068,2]
[380942166,1755909119750,-461.07,0.00015068,2]
[380942167,1755909119761,-416.42,0.00015068,2]
[380942168,1755909119771,-1025.78,0.00015068,2]
[380942169,1755909119781,-401.75,0.00015068,2]
[380942170,1755909119790,-834.47,0.00015068,2]
[380942171,1755909119800,-614.04,0.00015068,2]
[380942172,1755909119810,-776.97,0.00015068,2]
[380942173,1755909119820,-472.6,0.00015068,2]
[380942174,1755909119830,-334.48,0.00015068,2]
[380942175,1755909119840,-602.14,0.00015068,2]
[380942176,1755909119851,-417.62,0.00015068,2]
[380942177,1755909119861,-400.0,0.00015068,2]
[380942178,1755909119871,-400.0,0.00015068,2]
[380942179,1755909119880,-854.31,0.00015068,2]
[380942180,1755909119890,-400.0,0.00015068,2]
[380942181,1755909119900,-400.0,0.00015068,2]
[380942182,1755909119910,-572.31,0.00015068,2]
[380942183,1755909119920,-419.61,0.00015068,2]
[380942184,1755909119931,-400.0,0.00015068,2]
[380942185,1755909119941,-488.58,0.00015068,2]
[380942186,1755909119952,-585.48,0.00015068,2]
[380942187,1755909119962,-713.34,0.00015068,2]
[380942188,1755909119972,-400.0,0.00015068,2]
[380942189,1755909119982,-756.22,0.00015068,2]
[380942190,1755909119992,-869.4,0.00015068,2]
[380942191,1755909120002,-400.0,0.00015068,2]
[380942192,1755909120014,-494.08,0.00015068,2]
[380942193,1755909120024,-613.84,0.00015068,2]
[380942194,1755909120034,-400.0,0.00015068,2]
[380942195,1755909120044,-400.0,0.00015068,2]
[380942196,1755909120054,-493.02,0.00015068,2]
[380942197,1755909120064,-574.35,0.00015068,2]
[380942198,1755909120074,-993.54,0.00015068,2]
[380942199,1755909120084,-518.26,0.00015068,2]
[380942200,1755909120094,-665.46,0.00015068,2]
[380942201,1755909120103,-587.28,0.00015068,2]
[380942202,1755909120113,-735.95,0.00015068,2]
[380942203,1755909120123,-400.0,0.00015068,2]
[380942204,1755909120132,-615.67,0.00015068,2]
[380942205,1755909120142,-400.0,0.00015068,2]
[380942206,1755909120153,-400.0,0.00015068,2]
[380942207,1755909120162,-400.0,0.00015068,2]
[380942208,1755909120172,-400.0,0.00015068,2]
[380942209,1755909120181,-448.79,0.00015068,2]
[380942210,1755909120192,-983.83,0.00015068,2]
[380942211,1755909120205,-442.91,0.00015068,2]
[380942212,1755909120215,-590.43,0.00015068,2]
[380942213,1755909120226,-794.38,0.00015068,2]
[380942214,1755909120236,-400.0,0.00015068,2]
[380942215,1755909120247,-444.08,0.00015068,2]
[380942216,1755909120256,-546.25,0.00015068,2]
[380942217,1755909120267,-703.24,0.00015068,2]
[380942218,1755909120278,-529.58,0.00015068,2]
[380942219,1755909120289,-849.18,0.00015068,2]
[380942220,1755909120298,-876.02,0.00015068,2]
[380942221,1755909120308,-400.0,0.00015068,2]
[380942222,1755909120319,-492.86,0.00015068,2]
[380942223,1755909120328,-476.2,0.00015068,2]
[380942224,1755909120338,-788.72,0.00015068,2]
[380942225,1755909120348,-756.77,0.00015068,2]
[380942226,1755909120358,-754.08,0.00015068,2]
[380942227,1755909120368,-815.73,0.00015068,2]
[380942228,1755909120378,-400.0,0.00015068,2]
[380942229,1755909120388,-400.0,0.00015068,2]
[380942230,1755909120397,-400.0,0.00015068,2]
[380942231,1755909120407,-400.0,0.00015068,2]
[380942232,1755909120417,-896.11,0.00015068,2]
[380942233,1755909120426,-1011.99,0.00015068,2]
[380942234,1755909120436,-509.28,0.00015068,2]
[380942235,1755909120446,-640.92,0.00015068,2]
[380942236,1755909120455,-859.21,0.00015068,2]
[380942237,1755909120465,-1075.32,0.00015068,2]
[380942238,1755909120474,-400.0,0.00015068,2]
[380942239,1755909120484,-901.15,0.00015068,2]
[380942240,1755909120494,-411.47,0.00015068,2]
[380942241,1755909120503,-400.0,0.00015068,2]
[380942242,1755909120514,-725.33,0.00015068,2]
[380942243,1755909120524,-577.79,0.00015068,2]
[380942244,1755909120534,-421.13,0.00015068,2]
[380942245,1755909120544,-425.58,0.00015068,2]
[380942246,1755909120554,-781.05,0.00015068,2]
[380942247,1755909120564,-606.08,0.00015068,2]
[380942248,1755909120574,-771.47,0.00015068,2]
[380942249,1755909120583,-475.64,0.00015068,2]
[380942250,1755909120592,-632.28,0.00015068,2]
[380942251,1755909120602,-400.0,0.00015068,2]
[380942252,1755909120612,-552.73,0.00015068,2]
[380942253,1755909120622,-702.38,0.00015068,2]
[380942254,1755909120631,-400.0,0.00015068,2]
[380942255,1755909120641,-866.41,0.00015068,2]
[380942256,1755909120651,-758.47,0.00015068,2]
[380942257,1755909120661,-677.52,0.00015068,2]
[380942258,1755909120671,-400.0,0.00015068,2]
[380942259,1755909120681,-400.0,0.00015068,2]
[380942260,1755909120693,-483.75,0.00015068,2]
[380942261,1755909120704,-400.0,0.00015068,2]
[380942262,1755909120713,-620.99,0.00015068,2]
[380942263,1755909120724,-758.84,0.00015068,2]
[380942264,1755909120735,-424.0,0.00015068,2]
[380942265,1755909120744,-779.18,0.00015068,2]
[380942266,1755909120754,-400.0,0.00015068,2]
[380942267,1755909120765,-507.28,0.00015068,2]
[380942268,1755909120775,-400.0,0.00015068,2]
[380942269,1755909120785,-987.41,0.00015068,2]
[380942270,1755909120794,-400.0,0.00015068,2]
[380942271,1755909120804,-400.0,0.00015068,2]
[380942272,1755909120814,-706.05,0.00015068,2]
[380942273,1755909120823,-3029.47,0.00015068,2]
[380942274,1755909120833,-841.05,0.00015068,2]
[380942275,1755909120842,-869.31,0.00015068,2]
[380942276,1755909120852,-640.38,0.00015068,2]
[380942277,1755909120862,-400.0,0.00015068,2]
[380942278,1755909120871,-498.91,0.00015068,2]
[380942279,1755909120881,-615.48,0.00015068,2]
[380942280,1755909120892,-400.0,0.00015068,2]
[380942281,1755909120902,-503.02,0.00015068,2]
[380942282,1755909120912,-400.0,0.00015068,2]
[380942283,1755909120922,-445.28,0.00015068,2]
[380942284,1755909120931,-426.86,0.00015068,2]
[380942285,1755909120941,-577.61,0.00015068,2]
[380942286,1755909120951,-450.11,0.00015068,2]
[380942287,1755909120960,-990.96,0.00015068,2]
[380942288,1755909120970,-400.0,0.00015068,2]
[380942289,1755909120980,-931.14,0.00015068,2]
[380942290,1755909120990,-400.0,0.00015068,2]
[380942291,1755909121000,-554.12,0.00015068,2]
[380942292,1755909121010,-576.72,0.00015068,2]
[380942293,1755909121020,-400.0,0.00015068,2]
[380942294,1755909121030,-737.38,0.00015068,2]
[380942295,1755909121040,-400.0,0.00015068,2]
[380942296,1755909121050,-646.79,0.00015068,2]
[380942297,1755909121060,-400.0,0.00015068,2]
[380942298,1755909121070,-400.0,0.00015068,2]
[380942299,1755909121079,-400.0,0.00015068,2]
[380942300,1755909121089,-862.27,0.00015068,2]
[380942301,1755909121099,-658.4,0.00015068,2]
[380942302,1755909121109,-400.0,0.00015068,2]
[380942303,1755909121119,-400.0,0.00015068,2]
[380942304,1755909121129,-400.0,0.00015068,2]
[380942305,1755909121139,-445.91,0.00015068,2]
[380942306,1755909121149,-595.17,0.00015068,2]
[380942307,1755909121159,-492.65,0.00015068,2]
[380942308,1755909121169,-720.25,0.00015068,2]
[380942309,1755909121179,-884.95,0.00015068,2]
[380942310,1755909121190,-600.7,0.00015068,2]
[380942311,1755909121480,-764.74,0.00015068,2]
[380942312,1755909121547,-400.0,0.00015068,2]
[380942313,1755909121557,-444.58535392,0.00015068,2]
[380942314,1755909121567,-891.98,0.00015068,2]
[380942315,1755909121577,-622.74,0.00015068,2]
[380942316,1755909121586,-400.0,0.00015068,2]
[380942317,1755909121596,-874.86,0.00015068,2]
[380942318,1755909121606,-451.38,0.00015068,2]
[380942319,1755909121615,-560.28,0.00015068,2]
[380942320,1755909121625,-400.0,0.00015068,2]
[380942321,1755909121634,-400.0,0.00015068,2]
[380942322,1755909121644,-708.79,0.00015068,2]
[380942323,1755909121653,-667.54,0.00015068,2]
[380942324,1755909121663,-528.48,0.00015068,2]
[380942325,1755909121672,-340.62,0.00015068,2]
[380942326,1755909121696,-400.0,0.00015068,2]
[380942327,1755909121707,-400.0,0.00015068,2]
[380942328,1755909121717,-400.0,0.00015068,2]
[380942329,1755909121727,-519.95,0.00015068,2]
[380942330,1755909121737,-870.46,0.00015068,2]
[380942331,1755909121747,-808.28,0.00015068,2]
[380942332,1755909121758,-593.4,0.00015068,2]
[380942333,1755909121768,-605.98,0.00015068,2]
[380942334,1755909121778,-554.4,0.00015068,2]
[380942335,1755909121789,-707.1,0.00015068,2]
[380942336,1755909121800,-731.67,0.00015068,2]
[380942337,1755909121810,-400.0,0.00015068,2]
[380942338,1755909121820,-689.12,0.00015068,2]
[380942339,1755909121830,-400.0,0.00015068,2]
[380942340,1755909121840,-400.0,0.00015068,2]
[380942341,1755909121851,-400.0,0.00015068,2]
[380942342,1755909121861,-1723.92,0.00015068,2]
[380942343,1755909121872,-601.13,0.00015068,2]
[380942344,1755909121882,-791.71,0.00015068,2]
[380942345,1755909121892,-976.99,0.00015068,2]
[380942346,1755909121903,-571.32,0.00015068,2]
[380942347,1755909121913,-433.13,0.00015068,2]
[380942348,1755909121923,-857.87,0.00015068,2]
[380942349,1755909121933,-524.16,0.00015068,2]
[380942350,1755909121944,-400.0,0.00015068,2]
[380942351,1755909121954,-400.0,0.00015068,2]
[380942352,1755909121964,-763.62,0.00015068,2]
[380942353,1755909121974,-400.0,0.00015068,2]
[380942354,1755909121984,-956.1,0.00015068,2]
[380942355,1755909121995,-557.4,0.00015068,2]
[380942356,1755909122005,-526.88,0.00015068,2]
[380942357,1755909122017,-778.36,0.00015068,2]
[380942358,1755909122027,-424.56,0.00015068,2]
[380942359,1755909122037,-1050.46,0.00015068,2]
[380942360,1755909122047,-733.75,0.00015068,2]
[380942361,1755909122057,-519.43,0.00015068,2]
[380942362,1755909122067,-970.43,0.00015068,2]
[380942363,1755909122083,-1054.58,0.00015068,2]
[380942364,1755909122094,-400.0,0.00015068,2]
[380942365,1755909122104,-400.0,0.00015068,2]
[380942366,1755909122115,-546.29,0.00015068,2]
[380942367,1755909122126,-400.0,0.00015068,2]
[380942368,1755909122137,-640.8,0.00015068,2]
[380942369,1755909122147,-400.0,0.00015068,2]
[380942370,1755909122158,-610.91,0.00015068,2]
[380942371,1755909122168,-400.0,0.00015068,2]
[380942372,1755909122179,-582.36,0.00015068,2]
[380942373,1755909122190,-401.5,0.00015068,2]
[380942374,1755909122205,-832.07,0.00015068,2]
[380942375,1755909122217,-1000.0,0.00015068,2]
[380942376,1755909122228,-445.27,0.00015068,2]
[380942377,1755909122240,-400.0,0.00015068,2]
[380942378,1755909122251,-997.13,0.00015068,2]
[380942379,1755909122264,-644.56,0.00015068,2]
[380942380,1755909122275,-707.89,0.00015068,2]
[380942381,1755909122293,-453.25,0.00015068,2]
[380942382,1755909122306,-715.18,0.00015068,2]
[380942383,1755909122319,-685.45,0.00015068,2]
[380942384,1755909122330,-400.0,0.00015068,2]
[380942385,1755909122340,-949.39,0.00015068,2]
[380942386,1755909122350,-840.83,0.00015068,2]
[380942387,1755909122360,-400.0,0.00015068,2]
[380942388,1755909122371,-1448.86,0.00015068,2]
[380942389,1755909122381,-400.0,0.00015068,2]
[380942390,1755909122391,-982.96,0.00015068,2]
[380942391,1755909122401,-400.0,0.00015068,2]
[380942392,1755909122411,-593.92,0.00015068,2]
[380942393,1755909122422,-648.93,0.00015068,2]
[380942394,1755909122434,-739.87,0.00015068,2]
[380942395,1755909122444,-2980.04,0.00015068,2]
[380942396,1755909122456,-546.71,0.00015068,2]
[380942397,1755909122466,-1454.26,0.00015068,2]
[380942398,1755909122481,-800.57,0.00015068,2]
[380942399,1755909122492,-400.0,0.00015068,2]
[380942400,1755909122503,-692.75,0.00015068,2]
[380942401,1755909122514,-990.2,0.00015068,2]
[380942402,1755909122524,-400.0,0.00015068,2]
[380942403,1755909122534,-699.15,0.00015068,2]
[380942404,1755909122545,-400.0,0.00015068,2]
[380942405,1755909122555,-606.93,0.00015068,2]
[380942406,1755909122566,-400.0,0.00015068,2]
[380942407,1755909122578,-555.82,0.00015068,2]
[380942408,1755909122591,-659.71,0.00015068,2]
[380942409,1755909122607,-400.0,0.00015068,2]
[380942410,1755909122620,-400.0,0.00015068,2]
[380942411,1755909122631,-400.0,0.00015068,2]
[380942412,1755909122645,-693.63,0.00015068,2]
[380942413,1755909122656,-400.0,0.00015068,2]
[380942414,1755909122667,-3054.01,0.00015068,2]
[380942415,1755909122677,-553.64,0.00015068,2]
[380942416,1755909122688,-400.0,0.00015068,2]
[380942417,1755909122701,-400.0,0.00015068,2]
[380942418,1755909122711,-400.0,0.00015068,2]
[380942419,1755909122722,-667.54,0.00015068,2]
[380942420,1755909122732,-7354.27,0.00015068,2]
[380942421,1755909122742,-437.68,0.00015068,2]
[380942422,1755909122752,-400.0,0.00015068,2]
[380942423,1755909122764,-514.02,0.00015068,2]
[380942424,1755909122774,-400.0,0.00015068,2]
[380942425,1755909122784,-564.76,0.00015068,2]
[380942426,1755909122795,-400.0,0.00015068,2]
[380942427,1755909122805,-2143.12,0.00015068,2]
[380942428,1755909122815,-622.59,0.00015068,2]
[380942429,1755909122826,-428.31,0.00015068,2]
[380942430,1755909122836,-400.0,0.00015068,2]
[380942431,1755909122846,-400.0,0.00015068,2]
[380942432,1755909122856,-400.0,0.00015068,2]
[380942433,1755909122867,-400.0,0.00015068,2]
[380942434,1755909122880,-746.39,0.00015068,2]
[380942435,1755909122891,-873.6,0.00015068,2]
[380942436,1755909122902,-506.14,0.00015068,2]
[380942437,1755909122912,-701.17,0.00015068,2]
[380942438,1755909122923,-464.14,0.00015068,2]
[380942439,1755909122933,-400.0,0.00015068,2]
[380942440,1755909122943,-667.86,0.00015068,2]
[380942441,1755909122954,-430.84,0.00015068,2]
[380942442,1755909122964,-723.11,0.00015068,2]
[380942443,1755909122975,-400.0,0.00015068,2]
[380942444,1755909122986,-400.0,0.00015068,2]
[380942445,1755909122996,-400.0,0.00015068,2]
[380942446,1755909123008,-467.67,0.00015068,2]
[380942447,1755909123019,-462.24,0.00015068,2]
[380942448,1755909123029,-403.81,0.00015068,2]
[380942449,1755909123039,-400.0,0.00015068,2]
[380942450,1755909123050,-400.0,0.00015068,2]
[380942451,1755909123060,-465.9,0.00015068,2]
[380942452,1755909123072,-400.0,0.00015068,2]
[380942453,1755909123082,-426.68,0.00015068,2]
[380942454,1755909123093,-422.36,0.00015068,2]
[380942455,1755909123103,-550.31,0.00015068,2]
[380942456,1755909123117,-610.92,0.00015068,2]
[380942457,1755909123128,-400.0,0.00015068,2]
[380942458,1755909123138,-400.0,0.00015068,2]
[380942459,1755909123149,-584.01,0.00015068,2]
[380942460,1755909123160,-585.08,0.00015068,2]
[380942461,1755909123171,-578.59,0.00015068,2]
[380942462,1755909123182,-849.52,0.00015068,2]
[380942463,1755909123192,-566.15,0.00015068,2]
[380942464,1755909123212,-506.71,0.00015068,2]
[380942465,1755909123223,-400.0,0.00015068,2]
[380942466,1755909123233,-400.0,0.00015068,2]
[380942467,1755909123244,-879.86,0.00015068,2]
[380942468,1755909123254,-400.0,0.00015068,2]
[380942469,1755909123265,-3024.23,0.00015068,2]
[380942470,1755909123276,-400.0,0.00015068,2]
[380942471,1755909123287,-657.96,0.00015068,2]
[380942472,1755909123298,-523.88,0.00015068,2]
[380942473,1755909123309,-782.19,0.00015068,2]
[380942474,1755909123319,-607.68,0.00015068,2]
[380942475,1755909123330,-578.04,0.00015068,2]
[380942476,1755909123341,-484.15,0.00015068,2]
[380942477,1755909123352,-1191.42,0.00015068,2]
[380942478,1755909123362,-700.38,0.00015068,2]
[380942479,1755909123372,-400.0,0.00015068,2]
[380942480,1755909123383,-776.73,0.00015068,2]
[380942481,1755909123393,-840.01,0.00015068,2]
[380942482,1755909123403,-483.84,0.00015068,2]
[380942483,1755909123413,-400.0,0.00015068,2]
[380942484,1755909123424,-631.44,0.00015068,2]
[380942485,1755909123434,-758.06,0.00015068,2]
[380942486,1755909123445,-400.0,0.00015068,2]
[380942487,1755909123455,-587.88,0.00015068,2]
[380942488,1755909123466,-400.0,0.00015068,2]
[380942489,1755909123476,-400.0,0.00015068,2]
[380942490,1755909123485,-665.99,0.00015068,2]
[380942491,1755909123495,-522.42,0.00015068,2]
[380942492,1755909123506,-400.0,0.00015068,2]
[380942493,1755909123517,-400.0,0.00015068,2]
[380942494,1755909123527,-883.81,0.00015068,2]
[380942495,1755909123538,-201.79,0.00015068,2]
[380942496,1755909123548,-893.73,0.00015068,2]
[380942497,1755909123558,-678.75,0.00015068,2]
[380942498,1755909123568,-400.0,0.00015068,2]
[380942499,1755909123578,-666.33,0.00015068,2]
[380942500,1755909123588,-507.88,0.00015068,2]
[380942501,1755909123598,-400.0,0.00015068,2]
[380942502,1755909123608,-400.0,0.00015068,2]
[380942503,1755909123619,-400.0,0.00015068,2]
[380942504,1755909123629,-761.73,0.00015068,2]
[380942505,1755909123639,-842.68,0.00015068,2]
[380942506,1755909123649,-649.71,0.00015068,2]
[380942507,1755909123660,-467.86,0.00015068,2]
[380942508,1755909123669,-1320.96,0.00015068,2]
[380942509,1755909123681,-1111.45,0.00015068,2]
[380942510,1755909123691,-697.79,0.00015068,2]
[380942511,1755909123701,-517.79,0.00015068,2]
[380942512,1755909123711,-400.0,0.00015068,2]
[380942513,1755909123720,-689.28,0.00015068,2]